bitfinex/quotes_SOLUSD_20241127
["timestamp","ask_amount","ask_price","bid_price","bid_amount"]
[1732740636852,19.64149858,242.06,242.0,0.4786062]
[1732740638466,12.28295289,242.06,242.0,0.4786062]
[1732740639067,12.28295289,242.04,242.0,0.4786062]
[1732740640203,12.28295289,242.08,242.0,0.4786062]
[1732740641465,36.05983689,242.08,242.07,0.868138]
[1732740642753,48.94903689,242.08,242.07,0.868138]
[1732740643176,20.0,242.04,242.0,0.4786062]
[1732740643380,12.28295289,242.02,242.0,0.4786062]
[1732740643581,23.776884,242.01,242.0,0.4786062]
[1732740644369,23.776884,242.03,242.0,0.4786062]
[1732740644669,20.0,242.01,242.0,0.4786062]
[1732740645781,43.776884,242.01,242.0,0.4786062]
[1732740649483,48.776884,242.01,241.79,87.9407]
[1732740649672,23.776884,241.91,241.79,12.0049]
[1732740649981,23.776884,241.91,241.82,312.0]
[1732740650164,23.776884,241.93,241.82,312.0]
[1732740652172,20.0,241.91,241.83,0.82469865]
[1732740652378,12.28295289,241.96,241.83,0.82469865]
[1732740652379,20.0,241.93,241.83,0.82469865]
[1732740652688,23.776884,241.95,241.83,0.82469865]
[1732740652689,20.0,241.92,241.83,0.82469865]
[1732740653458,20.0,241.92,241.81,4.1354]
[1732740653670,20.0,241.92,241.82,0.82467511]
[1732740655480,20.0,241.92,241.82,312.82467511]
[1732740655781,20.0,241.92,241.8,4.1354]
[1732740655972,20.0,241.92,241.81,0.82469184]
[1732740656689,12.28295289,241.9,241.8,71.8]
[1732740656864,32.28295289,241.92,241.8,71.8]
[1732740658280,12.28295289,241.9,241.8,71.8]
[1732740658471,12.28295289,241.9,241.79,12.0049]
[1732740658780,12.28295289,241.9,241.8,312.0]
[1732740659665,12.28295289,241.85,241.76,90.4786062]
[1732740659865,20.0,241.82,241.76,90.4786062]
[1732740660263,12.28295289,241.87,241.77,0.82500491]
[1732740660473,20.0,241.86,241.77,0.82500491]
[1732740660669,23.776884,241.9,241.77,0.82500491]
[1732740661878,31.8264,241.91,241.77,4.96110491]
[1732740662075,31.8264,241.91,241.77,76.76110491]
[1732740662393,12.28295289,241.9,241.77,0.82500491]
[1732740662587,31.8264,241.91,241.8,312.0]
[1732740663087,23.776884,241.91,241.81,0.82478795]
[1732740663289,12.28295289,241.88,241.79,0.82476388]
[1732740663496,12.28295289,241.88,241.77,0.82486829]
[1732740663993,23.776884,241.91,241.77,0.82486829]
[1732740663994,20.0,241.85,241.77,0.82486829]
[1732740664189,23.776884,241.81,241.76,90.4786062]
[1732740665170,12.28295289,241.82,241.76,90.4786062]
[1732740665378,20.0,241.79,241.76,90.4786062]
[1732740666879,20.0,241.84,241.76,90.4786062]
[1732740667082,12.28295289,241.82,241.76,90.4786062]
[1732740667995,12.28295289,241.84,241.76,90.4786062]
[1732740668369,12.28295289,241.86,241.76,90.4786062]
[1732740669086,20.0,241.84,241.76,90.4786062]
[1732740669482,20.0,241.83,241.76,90.4786062]
[1732740670081,12.28295289,241.88,241.77,0.82495734]
[1732740670677,12.28295289,241.9,241.77,0.82495734]
[1732740671283,20.0,241.87,241.77,0.82495734]
[1732740671485,20.0,241.87,241.79,312.0]
[1732740671678,20.0,241.87,241.82,12.29856157]
[1732740671991,12.29856157,241.91,241.82,12.29856157]
[1732740673077,31.1654,241.92,241.8,0.82476578]
[1732740673078,12.29856157,241.89,241.8,13.12332735]
[1732740673291,12.29856157,241.89,241.8,12.29856157]
[1732740674602,12.29856157,241.87,241.78,13.12338865]
[1732740674899,12.29856157,241.87,241.78,325.12338865]
[1732740675098,12.29856157,241.87,241.78,324.29856157]
[1732740675278,12.29856157,241.85,241.78,312.0]
[1732740675593,12.29856157,241.87,241.79,0.82495488]
[1732740676099,12.29856157,241.87,241.78,12.29856157]
[1732740676979,12.29856157,241.85,241.76,102.77716777]
[1732740677188,12.29856157,241.83,241.76,90.4786062]
[1732740677374,20.0,241.82,241.76,102.77716777]
[1732740677772,20.0,241.82,241.76,90.4786062]
[1732740679404,32.29856157,241.83,241.76,90.4786062]
[1732740680010,12.29856157,241.81,241.76,90.4786062]
[1732740680382,32.29856157,241.83,241.76,90.4786062]
[1732740680801,12.29856157,241.87,241.78,12.29856157]
[1732740681095,23.776884,241.88,241.8,12.29856157]
[1732740682091,20.0,241.85,241.8,12.29856157]
[1732740682405,20.0,241.85,241.8,324.29856157]
[1732740683402,12.29856157,241.83,241.76,90.4786062]
[1732740683712,32.29856157,241.85,241.76,102.77716777]
[1732740685086,12.29856157,241.83,241.76,90.4786062]
[1732740685986,20.0,241.89,241.8,12.29856157]
[1732740686189,20.0,241.87,241.8,12.29856157]
[1732740686497,43.46396157,241.92,241.84,12.29856157]
[1732740687601,12.0397,241.98,241.88,12.29856157]
[1732740687602,12.29856157,241.98,241.88,12.29856157]
[1732740687792,12.29856157,241.98,241.9,12.29856157]
[1732740688205,12.29856157,241.98,241.88,12.29856157]
[1732740688408,12.29856157,241.98,241.9,12.29856157]
[1732740688707,12.29856157,241.96,241.88,12.29856157]
[1732740689413,12.29856157,242.02,241.92,12.29856157]
[1732740689888,12.29856157,242.02,241.92,324.29856157]
[1732740690211,12.29856157,241.98,241.92,312.0]
[1732740690687,30.7078,242.08,241.92,312.0]
[1732740690887,30.7078,242.08,241.94,12.29856157]
[1732740690888,20.0,242.0,241.94,12.29856157]
[1732740691084,12.29856157,241.99,241.92,312.0]
[1732740691283,12.29856157,241.99,241.9,12.29856157]
[1732740691284,12.29856157,241.97,241.89,83.9719]
[1732740692190,12.29856157,241.97,241.89,12.1719]
[1732740692392,12.29856157,241.95,241.86,84.09856157]
[1732740692592,12.29856157,241.95,241.84,31.4346]
[1732740692593,32.29856157,241.93,241.92,8.0956]
[1732740695090,56.07544557,241.93,241.92,8.0956]
[1732740701100,68.37400714,241.93,241.92,8.0956]
[1732740701306,56.07544557,241.93,241.92,8.0956]
[1732740702602,32.29856157,241.93,241.92,8.0956]
[1732740702925,12.29856157,241.93,241.92,8.0956]
[1732740703600,12.29856157,241.95,241.92,8.0956]
[1732740703925,32.0713,242.01,241.92,8.0956]
[1732740704213,12.29856157,241.97,241.92,8.0956]
[1732740705010,12.29856157,241.95,241.92,8.0956]
[1732740705220,12.29856157,241.93,241.92,8.0956]
[1732740708223,20.0,241.9,241.84,324.29856157]
[1732740708622,20.0,241.9,241.82,12.29856157]
[1732740709218,20.0,241.9,241.86,12.29856157]
[1732740709517,12.29856157,241.97,241.88,12.29856157]
[1732740710410,12.29856157,241.97,241.86,12.29856157]
[1732740710722,12.29856157,241.91,241.84,12.29856157]
[1732740710926,20.0,241.95,241.82,71.8]
[1732740711118,12.29856157,241.9,241.82,71.8]
[1732740711617,12.29856157,241.9,241.82,383.8]
[1732740712002,12.29856157,241.9,241.81,24.81946157]
[1732740712003,12.29856157,241.95,241.86,84.09856157]
[1732740712620,12.29856157,241.93,241.86,71.8]
[1732740712802,12.29856157,241.95,241.86,84.09856157]
[1732740713494,12.29856157,241.93,241.84,84.09856157]
[1732740714309,12.29856157,241.99,241.9,84.09856157]
[1732740714518,20.0,241.96,241.9,84.09856157]
[1732740714708,12.29856157,241.99,241.9,84.09856157]
[1732740715115,12.29856157,241.99,241.9,396.09856157]
[1732740715502,5.27106607,242.09,241.91,43.1126]
[1732740715723,12.29856157,242.04,241.94,84.09856157]
[1732740716024,12.29856157,242.04,241.96,12.29856157]
[1732740717206,12.29856157,242.06,241.96,84.09856157]
[1732740717521,12.29856157,242.08,241.98,12.29856157]
[1732740717733,12.29856157,242.06,241.97,0.8241352]
[1732740717909,12.29856157,242.0,241.94,75.82276843]
[1732740718107,12.29856157,242.0,241.94,71.8]
[1732740718509,12.29856157,242.02,241.94,312.0]
[1732740718832,12.29856157,242.04,241.95,84.09856157]
[1732740720027,12.29856157,242.02,241.95,71.8]
[1732740720521,12.29856157,242.0,241.91,127.21116157]
[1732740720730,12.29856157,242.02,241.93,12.29856157]
[1732740722030,38.289,242.12,241.95,12.29856157]
[1732740722031,12.29856157,242.04,241.95,12.29856157]
[1732740722217,12.29856157,242.04,241.95,84.09856157]
[1732740722423,12.29856157,242.04,241.97,12.29856157]
[1732740722929,12.29856157,242.06,241.97,84.09856157]
[1732740724329,20.0,242.03,241.95,84.09856157]
[1732740724536,12.29856157,242.02,241.95,71.8]
[1732740724823,12.29856157,242.02,241.93,84.09856157]
[1732740725609,12.29856157,242.02,241.93,396.09856157]
[1732740726208,12.29856157,242.0,241.93,312.0]
[1732740726608,12.29856157,242.0,241.91,55.41116157]
[1732740726932,12.29856157,242.0,241.92,4.0160676]
[1732740727232,12.29856157,242.0,241.93,4.0160676]
[1732740727412,12.29856157,242.0,241.91,55.41116157]
[1732740727621,12.29856157,242.0,241.91,43.1126]
[1732740727831,12.29856157,242.02,241.93,84.09856157]
[1732740728133,20.0,242.01,241.95,12.29856157]
[1732740729718,20.0,242.01,241.95,312.0]
[1732740730623,20.0,242.01,241.95,396.09856157]
[1732740731217,20.0,242.01,241.95,383.8]
[1732740733048,12.29856157,242.02,241.95,71.8]
[1732740734045,20.0,242.09,241.91,118.91022171]
[1732740734046,12.29856157,242.0,241.91,118.91022171]
[1732740734221,12.29856157,242.0,241.91,114.9126]
[1732740735626,12.29856157,242.02,241.91,127.21116157]
[1732740735935,12.29856157,242.02,241.91,439.21116157]
[1732740740049,12.29856157,242.02,241.92,0.82431265]
[1732740740247,12.29856157,242.02,241.92,72.62431265]
[1732740740546,12.29856157,242.02,241.92,71.8]
[1732740740924,12.29856157,242.0,241.92,71.8]
[1732740741152,12.29856157,242.0,241.91,127.21116157]
[1732740741443,23.776884,242.07,241.91,71.8]
[1732740741444,32.29856157,241.95,241.91,71.8]
[1732740741648,32.29856157,241.95,241.85,57.89606157]
[1732740741649,12.29856157,241.93,241.89,4.00139545]
[1732740741954,12.29856157,241.93,241.85,121.39889545]
[1732740742242,12.29856157,241.93,241.85,117.3975]
[1732740742425,12.29856157,241.93,241.85,71.8]
[1732740742633,12.29856157,241.93,241.84,0.82465973]
[1732740743031,12.29856157,241.93,241.84,312.82465973]
[1732740743235,5.0,242.01,241.84,312.0]
[1732740743236,20.0,241.9,241.84,312.0]
[1732740743451,12.29856157,241.89,241.81,88.09995702]
[1732740743748,20.0,241.86,241.81,71.8]
[1732740743920,12.29856157,241.87,241.81,71.8]
[1732740744120,12.29856157,241.83,241.78,4.00139545]
[1732740744319,12.29856157,241.83,241.76,94.48000165]
[1732740744547,20.0,241.8,241.76,90.4786062]
[1732740745852,12.29856157,241.79,241.76,90.4786062]
[1732740746348,20.0,241.77,241.76,90.4786062]
[1732740747254,89.22324557,241.77,241.76,90.4786062]
[1732740747758,89.22324557,241.77,241.58,22.5012]
[1732740748042,12.29856157,241.66,241.58,94.3012]
[1732740748552,12.29856157,241.66,241.59,12.29856157]
[1732740749253,33.1478,241.77,241.58,22.5012]
[1732740749254,12.29856157,241.64,241.58,22.5012]
[1732740749953,12.29856157,241.64,241.58,334.5012]
[1732740750134,12.29856157,241.66,241.58,334.5012]
[1732740750340,12.29856157,241.66,241.59,13.12405115]
[1732740750539,12.29856157,241.72,241.63,12.29856157]
[1732740750739,20.0,241.69,241.63,12.29856157]
[1732740751041,20.0,241.69,241.61,12.29856157]
[1732740752556,12.29856157,241.72,241.65,12.29856157]
[1732740752847,12.29856157,241.76,241.67,12.29856157]
[1732740754026,20.0,241.73,241.67,12.29856157]
[1732740754738,20.0,241.73,241.67,324.29856157]
[1732740755165,32.29856157,241.74,241.67,312.0]
[1732740755741,32.29856157,241.74,241.65,12.29856157]
[1732740757440,12.29856157,241.7,241.62,71.8]
[1732740757750,12.29856157,241.66,241.59,84.09856157]
[1732740758137,12.29856157,241.66,241.57,12.29856157]
[1732740758846,12.29856157,241.64,241.55,71.8]
[1732740759159,12.29856157,241.62,241.53,12.29856157]
[1732740761854,12.29856157,241.62,241.53,324.29856157]
[1732740762442,20.0,241.63,241.57,12.29856157]
[1732740763947,12.29856157,241.71,241.61,12.29856157]
[1732740764152,12.29856157,241.71,241.63,12.29856157]
[1732740764447,12.29856157,241.69,241.59,12.29856157]
[1732740765363,20.0,241.65,241.59,12.29856157]
[1732740765962,20.0,241.65,241.59,324.29856157]
[1732740769652,13.2429,241.72,241.63,12.29856157]
[1732740769653,25.54146157,241.72,241.63,12.29856157]
[1732740769847,25.54146157,241.72,241.61,12.29856157]
[1732740769848,12.29856157,241.7,241.61,12.29856157]
[1732740770049,12.29856157,241.66,241.58,22.5012]
[1732740770544,12.29856157,241.64,241.58,22.5012]
[1732740770946,12.29856157,241.62,241.58,22.5012]
[1732740771161,12.29856157,241.6,241.51,72.2786062]
[1732740771371,12.29856157,241.6,241.51,12.77716777]
[1732740773565,12.29856157,241.58,241.51,0.4786062]
[1732740773955,12.29856157,241.56,241.51,0.4786062]
[1732740775151,12.29856157,241.54,241.51,0.4786062]
[1732740775346,12.29856157,241.52,241.51,0.4786062]
[1732740776476,12.29856157,241.52,241.35,45.6995]
[1732740776477,20.0,241.37,241.34,16.575974]
[1732740776672,20.0,241.37,241.3,12.29856157]
[1732740777570,12.29856157,241.34,241.27,0.4786062]
[1732740779348,24.24623304,241.44,241.27,0.4786062]
[1732740779349,20.0,241.41,241.28,12.29856157]
[1732740779552,20.0,241.36,241.3,12.29856157]
[1732740779749,20.0,241.36,241.27,0.4786062]
[1732740779750,20.0,241.36,241.28,12.29856157]
[1732740779973,20.0,241.34,241.28,12.29856157]
[1732740780175,20.0,241.34,241.27,0.4786062]
[1732740780552,12.29856157,241.33,241.27,0.4786062]
[1732740780772,12.29856157,241.31,241.27,0.4786062]
[1732740781462,12.29856157,241.29,241.27,0.4786062]
[1732740782673,20.0,241.34,241.27,0.4786062]
[1732740782880,12.29856157,241.37,241.28,13.12519818]
[1732740783056,12.29856157,241.37,241.3,12.29856157]
[1732740784077,12.29856157,241.33,241.27,0.4786062]
[1732740784286,19.77305336,241.32,241.27,0.4786062]
[1732740785558,19.77305336,241.3,241.27,0.4786062]
[1732740785888,19.77305336,241.32,241.27,0.4786062]
[1732740791457,19.77305336,241.3,241.27,0.4786062]
[1732740793082,19.77305336,241.34,241.27,0.4786062]
[1732740793765,19.77305336,241.28,241.27,0.4786062]
[1732740793968,19.77305336,241.3,241.27,0.4786062]
[1732740794765,39.77305336,241.28,241.15,4.1467]
[1732740794970,39.77305336,241.28,241.19,19.77305336]
[1732740796176,39.77305336,241.28,241.19,331.77305336]
[1732740797367,39.77305336,241.28,241.19,312.0]
[1732740797689,19.77305336,241.26,241.17,19.77305336]
[1732740797893,20.0,241.28,241.19,19.77305336]
[1732740797894,39.77305336,241.28,241.19,19.77305336]
[1732740800102,19.77305336,241.26,241.17,19.77305336]
[1732740800590,19.77305336,241.26,241.17,331.77305336]
[1732740802283,19.77305336,241.26,241.17,19.77305336]
[1732740803967,19.77305336,241.26,241.19,19.77305336]
[1732740804171,39.77305336,241.28,241.19,19.77305336]
[1732740804579,19.77305336,241.32,241.23,19.77305336]
[1732740804793,30.3152,241.33,241.25,19.77305336]
[1732740805092,19.77305336,241.34,241.25,19.77305336]
[1732740805384,19.77305336,241.32,241.25,331.77305336]
[1732740806287,12.35799095,241.32,241.25,312.0]
[1732740806890,12.474,241.37,241.26,12.35799095]
[1732740807062,12.35799095,241.36,241.26,12.35799095]
[1732740807891,12.35799095,241.34,241.26,12.35799095]
[1732740808587,12.35799095,241.34,241.24,73.54779715]
[1732740808773,12.35799095,241.3,241.22,12.35799095]
[1732740808979,12.35799095,241.28,241.2,12.35799095]
[1732740809586,12.35799095,241.26,241.18,12.35799095]
[1732740809893,12.35799095,241.26,241.18,324.35799095]
[1732740811691,20.0,241.29,241.18,324.35799095]
[1732740811893,12.35799095,241.27,241.18,324.35799095]
[1732740812387,12.35799095,241.25,241.18,312.0]
[1732740812592,12.35799095,241.25,241.18,324.35799095]
[1732740812885,12.35799095,241.21,241.11,62.80469784]
[1732740813095,12.35799095,241.21,241.11,73.54779715]
[1732740813390,12.35799095,241.19,241.11,12.35799095]
[1732740815585,12.2818,241.26,241.03,12.8686062]
[1732740815586,12.35799095,241.13,241.03,12.83659715]
[1732740815797,12.35799095,241.11,241.05,312.0]
[1732740816166,12.35799095,241.11,241.03,12.83659715]
[1732740816365,32.2512,241.14,241.03,0.4786062]
[1732740816366,12.35799095,241.09,241.03,0.4786062]
[1732740816566,12.35799095,241.07,241.03,0.4786062]
[1732740816988,12.35799095,241.09,241.03,0.4786062]
[1732740817197,12.35799095,241.04,241.03,0.4786062]
[1732740817372,12.35799095,241.06,241.03,0.4786062]
[1732740817573,12.35799095,241.08,241.03,0.4786062]
[1732740818386,32.35799095,241.05,241.03,0.4786062]
[1732740819489,12.35799095,241.07,241.03,0.4786062]
[1732740821301,12.35799095,241.05,241.03,0.4786062]
[1732740822671,12.35799095,241.07,241.03,0.4786062]
[1732740823795,32.35799095,241.09,241.03,0.4786062]
[1732740825376,12.35799095,241.09,241.03,0.4786062]
[1732740825678,13.96170508,241.18,241.03,0.4786062]
[1732740825679,24.65579095,241.19,241.08,12.35799095]
[1732740825898,24.65579095,241.19,241.1,12.35799095]
[1732740826188,12.35799095,241.17,241.1,12.35799095]
[1732740827704,12.35799095,241.17,241.05,4.1484]
[1732740827705,12.35799095,241.17,241.08,12.35799095]
[1732740828584,12.35799095,241.13,241.05,61.1898062]
[1732740828894,12.35799095,241.13,241.03,74.02640335]
[1732740829300,12.35799095,241.11,241.03,74.02640335]
[1732740829493,12.35799095,241.11,241.03,0.4786062]
[1732740830093,12.35799095,241.09,241.03,0.4786062]
[1732740831099,12.35799095,241.11,241.03,12.83659715]
[1732740831510,12.35799095,241.13,241.05,12.35799095]
[1732740831677,12.35799095,241.13,241.05,324.35799095]
[1732740833379,12.35799095,241.11,241.05,312.0]
[1732740834990,12.35799095,241.13,241.05,312.0]
[1732740835382,12.35799095,241.13,241.05,324.35799095]
[1732740837702,12.35799095,241.17,241.09,12.35799095]
[1732740838088,12.35799095,241.19,241.11,12.35799095]
[1732740838297,12.35799095,241.17,241.09,12.35799095]
[1732740838883,12.35799095,241.17,241.09,16.50579095]
[1732740839188,12.35799095,241.17,241.09,12.35799095]
[1732740840806,12.35799095,241.17,241.09,312.0]
[1732740841187,12.35799095,241.17,241.09,324.35799095]
[1732740841593,12.35799095,241.17,241.09,385.54779715]
[1732740842210,12.1226,241.25,241.16,12.35799095]
[1732740842505,42.92649095,241.27,241.18,12.35799095]
[1732740842681,12.35799095,241.3,241.22,12.35799095]
[1732740843408,42.92649095,241.33,241.24,12.35799095]
[1732740844806,20.0,241.29,241.24,12.35799095]
[1732740845290,12.35799095,241.34,241.27,12.35799095]
[1732740845494,12.35799095,241.36,241.27,12.35799095]
[1732740845793,12.35799095,241.34,241.27,12.35799095]
[1732740846210,12.35799095,241.34,241.25,12.35799095]
[1732740846413,5.0,241.45,241.25,12.35799095]
[1732740846414,5.0,241.57,241.33,73.54779715]
[1732740846621,12.35799095,241.43,241.36,12.35799095]
[1732740846824,12.35799095,241.43,241.34,12.35799095]
[1732740847314,13.2073,241.49,241.34,12.35799095]
[1732740847315,12.35799095,241.41,241.34,12.35799095]
[1732740847614,12.35799095,241.37,241.3,12.35799095]
[1732740848197,12.35799095,241.39,241.3,12.35799095]
[1732740848497,19.76216149,241.41,241.33,19.76216149]
[1732740848804,19.76216149,241.39,241.31,19.76216149]
[1732740849417,19.76216149,241.43,241.35,19.76216149]
[1732740849632,19.76216149,241.43,241.37,19.76216149]
[1732740849809,19.76216149,241.43,241.35,19.76216149]
[1732740850007,19.76216149,241.41,241.33,19.76216149]
[1732740850345,19.76216149,241.37,241.29,19.76216149]
[1732740850628,19.76216149,241.37,241.26,104.2128062]
[1732740850629,19.76216149,241.34,241.26,62.78516149]
[1732740851217,39.76216149,241.3,241.21,92.1046062]
[1732740851420,19.76216149,241.26,241.18,19.76216149]
[1732740852221,19.76216149,241.28,241.2,19.76216149]
[1732740852513,23.776884,241.33,241.22,19.76216149]
[1732740852514,19.76216149,241.3,241.22,19.76216149]
[1732740852699,20.0,241.3,241.24,19.76216149]
[1732740852900,19.76216149,241.32,241.24,19.76216149]
[1732740854215,39.76216149,241.3,241.22,19.76216149]
[1732740854595,19.76216149,241.28,241.2,331.76216149]
[1732740854802,39.76216149,241.3,241.22,19.76216149]
[1732740855026,39.76216149,241.3,241.24,19.76216149]
[1732740855027,20.0,241.3,241.24,19.76216149]
[1732740855707,19.76216149,241.36,241.28,19.76216149]
[1732740856920,20.0,241.33,241.28,19.76216149]
[1732740857225,32.9876,241.4,241.26,4.1448]
[1732740857226,19.76216149,241.38,241.3,19.76216149]
[1732740857801,19.76216149,241.41,241.33,19.76216149]
[1732740859223,20.0,241.38,241.33,19.76216149]
[1732740860398,20.2494,241.38,241.33,19.76216149]
[1732740861817,20.2494,241.38,241.31,19.76216149]
[1732740863718,0.2494,241.38,241.31,19.76216149]
[1732740863921,19.76216149,241.37,241.29,19.76216149]
[1732740864133,19.76216149,241.37,241.28,61.1898062]
[1732740864429,19.76216149,241.35,241.28,61.1898062]
[1732740866221,19.76216149,241.31,241.24,61.1898062]
[1732740866609,19.76216149,241.29,241.24,61.1898062]
[1732740867633,19.76216149,241.31,241.24,61.1898062]
[1732740868634,32.3945,241.35,241.25,19.76216149]
[1732740868811,19.76216149,241.33,241.25,19.76216149]
[1732740869009,19.76216149,241.33,241.24,61.1898062]
[1732740869010,16.48328924,241.33,241.26,19.76216149]
[1732740869208,52.15666149,241.35,241.28,19.76216149]
[1732740870349,52.15666149,241.35,241.26,19.76216149]
[1732740870635,44.75095528,241.35,241.26,12.35645528]
[1732740870941,44.75095528,241.35,241.26,73.54626148]
[1732740872445,12.35645528,241.37,241.28,73.54626148]
[1732740872927,12.35645528,241.37,241.3,12.35645528]
[1732740873125,54.244984,241.4,241.32,12.35645528]
[1732740875844,12.35645528,241.39,241.32,12.35645528]
[1732740876642,54.244984,241.4,241.32,12.35645528]
[1732740876951,23.776884,241.44,241.36,12.35645528]
[1732740877257,30.3207,241.46,241.38,12.35645528]
[1732740877437,30.3207,241.46,241.32,12.35645528]
[1732740877438,30.3207,241.46,241.4,12.35645528]
[1732740877632,12.35645528,241.51,241.42,12.35645528]
[1732740878750,42.5283,241.52,241.44,12.35645528]
[1732740879132,42.5283,241.52,241.42,12.35645528]
[1732740879133,20.0,241.49,241.42,12.35645528]
[1732740880350,12.35645528,241.45,241.35,61.1898062]
[1732740880654,20.0,241.49,241.35,61.1898062]
[1732740880655,12.35645528,241.41,241.35,61.1898062]
[1732740880833,12.35645528,241.39,241.31,12.35645528]
[1732740882041,25.0,241.49,241.31,12.35645528]
[1732740882042,23.776884,241.48,241.33,12.35645528]
[1732740882244,23.776884,241.48,241.37,19.75371891]
[1732740882245,19.75371891,241.45,241.37,19.75371891]
[1732740882562,0.2494,241.39,241.37,19.75371891]
[1732740882936,0.2494,241.39,241.37,392.94352511]
[1732740883457,0.2494,241.39,241.38,0.82618552]
[1732740883958,0.2494,241.39,241.38,4.96898552]
[1732740884350,0.2494,241.39,241.38,66.15879172]
[1732740884550,0.2494,241.39,241.38,98.46009172]
[1732740884858,0.2494,241.39,241.38,97.6339062]
[1732740885745,0.2494,241.39,241.38,61.1898062]
[1732740890545,0.2494,241.39,241.35,80.94352511]
[1732740891459,0.2494,241.39,241.37,19.75371891]
[1732740893552,0.2494,241.39,241.37,80.94352511]
[1732740893953,0.18826996,241.39,241.37,80.94352511]
[1732740897650,0.18826996,241.39,241.37,85.08642511]
[1732740898074,0.18826996,241.39,241.37,61.1898062]
[1732740898274,0.18826996,241.39,241.34,61.1898062]
[1732740898870,0.18826996,241.39,241.34,80.94352511]
[1732740899078,0.18826996,241.39,241.36,19.75371891]
[1732740899293,0.18826996,241.39,241.38,19.75371891]
[1732740900272,42.551,241.52,241.38,61.1898062]
[1732740900476,39.75371891,241.48,241.39,19.75371891]
[1732740900704,39.75371891,241.48,241.41,19.75371891]
[1732740901388,39.75371891,241.48,241.39,80.94352511]
[1732740902401,19.75371891,241.46,241.37,19.75371891]
[1732740902708,12.34568747,241.45,241.37,12.34568747]
[1732740903900,12.34568747,241.47,241.39,73.53549367]
[1732740904576,12.34568747,241.45,241.39,61.1898062]
[1732740904793,12.34568747,241.41,241.31,12.34568747]
[1732740905000,12.34568747,241.41,241.3,61.1898062]
[1732740905001,12.34568747,241.37,241.29,73.53549367]
[1732740905504,12.34568747,241.35,241.29,61.1898062]
[1732740905682,12.34568747,241.33,241.27,61.1898062]
[1732740906000,32.34568747,241.37,241.29,12.34568747]
[1732740906206,12.34568747,241.3,241.25,61.1898062]
[1732740906499,12.34568747,241.3,241.22,73.53549367]
[1732740906709,12.34568747,241.3,241.22,12.34568747]
[1732740907005,12.34568747,241.36,241.28,12.34568747]
[1732740907381,20.0,241.37,241.3,12.34568747]
[1732740907585,20.0,241.35,241.3,12.34568747]
[1732740907804,12.34568747,241.38,241.3,12.34568747]
[1732740908310,12.34568747,241.4,241.32,12.34568747]
[1732740908480,20.0,241.37,241.32,12.34568747]
[1732740908686,12.34568747,241.4,241.32,12.34568747]
[1732740909287,46.4115,241.41,241.34,12.34568747]
[1732740909488,33.2667,241.41,241.34,73.53549367]
[1732740910225,12.34568747,241.4,241.34,61.1898062]
[1732740910503,12.34568747,241.38,241.3,12.34568747]
[1732740911319,12.34568747,241.4,241.32,12.34568747]
[1732740912284,12.34568747,241.38,241.3,12.34568747]
[1732740912794,12.34568747,241.38,241.28,12.34568747]
[1732740912988,12.34568747,241.36,241.27,61.1898062]
[1732740913189,12.34568747,241.33,241.27,61.1898062]
[1732740913607,12.34568747,241.35,241.27,73.53549367]
[1732740914811,12.34568747,241.37,241.27,73.53549367]
[1732740915017,12.34568747,241.37,241.29,12.34568747]
[1732740915018,20.0,241.34,241.29,12.34568747]
[1732740916019,20.0,241.34,241.27,73.53549367]
[1732740916489,20.0,241.34,241.27,61.1898062]
[1732740916685,20.0,241.34,241.25,12.34568747]
[1732740918310,12.34568747,241.33,241.25,12.34568747]
[1732740918511,12.34568747,241.29,241.21,73.53549367]
[1732740919013,12.34568747,241.31,241.21,73.53549367]
[1732740919211,12.34568747,241.31,241.21,12.34568747]
[1732740919595,12.34568747,241.31,241.23,73.53549367]
[1732740919796,20.0,241.32,241.27,12.34568747]
[1732740919999,24.96388747,241.35,241.27,12.34568747]
[1732740922316,12.34568747,241.37,241.29,12.34568747]
[1732740924723,12.34568747,241.4,241.32,12.34568747]
[1732740925455,46.4251,241.41,241.34,12.34568747]
[1732740925633,20.0,241.38,241.34,12.34568747]
[1732740926008,33.2667,241.41,241.34,12.34568747]
[1732740926206,12.34568747,241.44,241.36,12.34568747]
[1732740926410,42.5875,241.47,241.4,12.34568747]
[1732740926734,12.34568747,241.52,241.44,12.34568747]
[1732740926903,30.5618,241.53,241.44,12.34568747]
[1732740927102,12.34568747,241.52,241.44,12.34568747]
[1732740927813,12.34568747,241.5,241.42,12.34568747]
[1732740928026,12.34568747,241.48,241.4,73.53549367]
[1732740928215,12.34568747,241.46,241.4,61.1898062]
[1732740928529,12.34568747,241.48,241.4,12.34568747]
[1732740928827,12.34568747,241.5,241.42,12.34568747]